[Event "Titled Tuesday Blitz July 4 Late 2023"]
[White "Martinez Alcantara, Jose Eduardo"]
[Black "Caruana, Fabiano"]
[WhiteFideId "3805662"]
[BlackFideId "2020009"]
[WhiteElo "3034"]
[BlackElo "3120"]
[Result "1/2-1/2"]
[Round "9"]
[TimeControl "180+2"]
[Date "2023.07.04"]
[WhiteClock "0:00:03"]
[BlackClock "0:00:05"]
[Board "2"]

1. e4 {[%clk 0:03:00]}  e5 {[%clk 0:03:00]} 2. Nf3 {[%clk 0:02:59]}  Nc6 {[%clk 0:03:00]} 3. Bb5 {[%clk 0:02:59]}  a6 {[%clk 0:03:01]} 4. Ba4 {[%clk 0:03:00]}  Nf6 {[%clk 0:03:01]} 5. d3 {[%clk 0:03:01]}  b5 {[%clk 0:03:01]} 6. Bb3 {[%clk 0:03:01]}  Bc5 {[%clk 0:03:02]} 7. c3 {[%clk 0:03:02]}  d6 {[%clk 0:03:00]} 8. Bg5 {[%clk 0:03:02]}  h6 {[%clk 0:02:58]} 9. Bh4 {[%clk 0:03:03]}  g5 {[%clk 0:02:58]} 10. Bg3 {[%clk 0:03:03]}  O-O {[%clk 0:02:58]} 11. Nbd2 {[%clk 0:03:01]}  Bb6 {[%clk 0:02:57]} 12. Qe2 {[%clk 0:02:52]}  Kg7 {[%clk 0:02:57]} 13. Nf1 {[%clk 0:02:45]}  Ne7 {[%clk 0:02:42]} 14. Ne3 {[%clk 0:02:33]}  Ng6 {[%clk 0:02:37]} 15. h4 {[%clk 0:02:10]}  Nf4 {[%clk 0:02:34]} 16. Qd2 {[%clk 0:01:57]}  g4 {[%clk 0:02:26]} 17. Nh2 {[%clk 0:01:57]}  a5 {[%clk 0:02:08]} 18. Bxf4 {[%clk 0:01:34]}  exf4 {[%clk 0:02:09]} 19. Nd5 {[%clk 0:01:35]}  Nxd5 {[%clk 0:01:35]} 20. Bxd5 {[%clk 0:01:36]}  Ra7 {[%clk 0:01:31]} 21. d4 {[%clk 0:00:59]}  c5 {[%clk 0:01:16]} 22. O-O-O {[%clk 0:00:37]}  cxd4 {[%clk 0:01:15]} 23. cxd4 {[%clk 0:00:37]}  Qxh4 {[%clk 0:01:03]} 24. f3 {[%clk 0:00:29]}  Qg5 {[%clk 0:00:48]} 25. Nxg4 {[%clk 0:00:28]}  Bxg4 {[%clk 0:00:48]} 26. fxg4 {[%clk 0:00:29]}  a4 {[%clk 0:00:37]} 27. Kb1 {[%clk 0:00:27]}  a3 {[%clk 0:00:36]} 28. Rdf1 {[%clk 0:00:27]}  axb2 {[%clk 0:00:33]} 29. Rxf4 {[%clk 0:00:26]}  Rc7 {[%clk 0:00:27]} 30. Rh5 {[%clk 0:00:21]}  Qg6 {[%clk 0:00:19]} 31. Rff5 {[%clk 0:00:07]}  Rfc8 {[%clk 0:00:15]} 32. Kxb2 {[%clk 0:00:06]}  f6 {[%clk 0:00:12]} 33. Rh3 {[%clk 0:00:01]}  Rc2+ {[%clk 0:00:10]} 34. Qxc2 {[%clk 0:00:02]}  Bxd4+ {[%clk 0:00:09]} 35. Kb1 {[%clk 0:00:02]}  Rxc2 {[%clk 0:00:09]} 36. Kxc2 {[%clk 0:00:03]}  Qxg4 {[%clk 0:00:10]} 37. Rff3 {[%clk 0:00:03]}  Qxg2+ {[%clk 0:00:09]} 38. Kd3 {[%clk 0:00:03]}  Be5 {[%clk 0:00:09]} 39. Ke3 {[%clk 0:00:02]}  Qc2 {[%clk 0:00:08]} 40. Rh5 {[%clk 0:00:01]}  Kg6 {[%clk 0:00:08]} 41. Rfh3 {[%clk 0:00:01]}  Qc1+ {[%clk 0:00:08]} 42. Kf3 {[%clk 0:00:02]}  Qf4+ {[%clk 0:00:08]} 43. Ke2 {[%clk 0:00:02]}  Qg4+ {[%clk 0:00:08]} 44. Kd3 {[%clk 0:00:02]}  Bf4 {[%clk 0:00:06]} 45. Rh1 {[%clk 0:00:01]}  Qf3+ {[%clk 0:00:06]} 46. Kc2 {[%clk 0:00:02]}  Qe2+ {[%clk 0:00:07]} 47. Kb3 {[%clk 0:00:02]}  Qd3+ {[%clk 0:00:05]} 48. Kb2 {[%clk 0:00:02]}  Be5+ {[%clk 0:00:05]} 49. Kc1 {[%clk 0:00:02]}  Qc3+ {[%clk 0:00:06]} 50. Kd1 {[%clk 0:00:03]}  Qf3+ {[%clk 0:00:06]} 51. Kc2 {[%clk 0:00:03]}  Qe2+ {[%clk 0:00:06]} 52. Kc1 {[%clk 0:00:04]}  Qe3+ {[%clk 0:00:06]} 53. Kc2 {[%clk 0:00:04]}  Qc3+ {[%clk 0:00:05]} 54. Kd1 {[%clk 0:00:04]}  Kg7 {[%clk 0:00:06]} 55. R5h3 {[%clk 0:00:04]}  Qd4+ {[%clk 0:00:05]} 56. Ke2 {[%clk 0:00:05]}  Qb2+ {[%clk 0:00:05]} 57. Kf3 {[%clk 0:00:05]}  Qd2 {[%clk 0:00:06]} 58. Rg1+ {[%clk 0:00:05]}  Kf8 {[%clk 0:00:06]} 59. Rg8+ {[%clk 0:00:06]}  Ke7 {[%clk 0:00:06]} 60. Rg7+ {[%clk 0:00:06]}  Kd8 {[%clk 0:00:06]} 61. Rg8+ {[%clk 0:00:04]}  Kc7 {[%clk 0:00:06]} 62. Kg4 {[%clk 0:00:05]}  Kb6 {[%clk 0:00:06]} 63. Kf5 {[%clk 0:00:04]}  Qf2+ {[%clk 0:00:05]} 64. Ke6 {[%clk 0:00:05]}  Qc5 {[%clk 0:00:06]} 65. Rb8+ {[%clk 0:00:04]}  Ka5 {[%clk 0:00:06]} 66. Rb3 {[%clk 0:00:04]}  Ka6 {[%clk 0:00:03]} 67. a4 {[%clk 0:00:03]}  b4 {[%clk 0:00:02]} 68. R8xb4 {[%clk 0:00:03]}  Qc8+ {[%clk 0:00:01]} 69. Ke7 {[%clk 0:00:03]}  Qc7+ {[%clk 0:00:02]} 70. Ke6 {[%clk 0:00:03]}  Qc8+ {[%clk 0:00:02]} 71. Ke7 {[%clk 0:00:04]}  Qc7+ {[%clk 0:00:03]} 72. Kf8 {[%clk 0:00:05]}  Qd8+ {[%clk 0:00:03]} 73. Kf7 {[%clk 0:00:05]}  Qd7+ {[%clk 0:00:03]} 74. Kf8 {[%clk 0:00:06]}  Qd8+ {[%clk 0:00:04]} 75. Kg7 {[%clk 0:00:07]}  f5+ {[%clk 0:00:04]} 76. Kf7 {[%clk 0:00:06]}  Qd7+ {[%clk 0:00:04]} 77. Kf8 {[%clk 0:00:05]}  Qd8+ {[%clk 0:00:04]} 78. Kf7 {[%clk 0:00:06]}  Qd7+ {[%clk 0:00:05]} 79. Kf8 {[%clk 0:00:02]}  Qd8+ {[%clk 0:00:05]} 80. Kf7 {[%clk 0:00:03]} 1/2-1/2


[Site "https://www.chess.com"]

[Event "Titled Tuesday Blitz July 4 Late 2023"]
[White "Nakamura, Hikaru"]
[Black "Indjic, Aleksandar"]
[WhiteFideId "2016192"]
[BlackFideId "911925"]
[WhiteElo "3176"]
[BlackElo "2974"]
[Result "1-0"]
[Round "9"]
[TimeControl "180+2"]
[Date "2023.07.04"]
[WhiteClock "0:00:17"]
[BlackClock "0:00:00"]
[Board "4"]

1. h3 {[%clk 0:03:00]}  a5 {[%clk 0:02:54]} 2. e4 {[%clk 0:02:59]}  e6 {[%clk 0:02:49]} 3. d4 {[%clk 0:02:51]}  d5 {[%clk 0:02:49]} 4. exd5 {[%clk 0:02:51]}  exd5 {[%clk 0:02:49]} 5. Bd3 {[%clk 0:02:51]}  Bd6 {[%clk 0:02:46]} 6. Qf3 {[%clk 0:02:42]}  Qf6 {[%clk 0:02:42]} 7. Qxd5 {[%clk 0:02:40]}  Nc6 {[%clk 0:02:36]} 8. c3 {[%clk 0:02:38]}  Qe7+ {[%clk 0:02:26]} 9. Qe4 {[%clk 0:02:33]}  Be6 {[%clk 0:02:25]} 10. Nf3 {[%clk 0:02:31]}  Nf6 {[%clk 0:02:24]} 11. Qe2 {[%clk 0:02:31]}  O-O-O {[%clk 0:02:22]} 12. Ng5 {[%clk 0:02:19]}  Bd5 {[%clk 0:01:34]} 13. Qxe7 {[%clk 0:02:16]}  Nxe7 {[%clk 0:01:34]} 14. f3 {[%clk 0:01:57]}  Bg3+ {[%clk 0:00:51]} 15. Kd1 {[%clk 0:01:49]}  Nh5 {[%clk 0:00:46]} 16. Ne4 {[%clk 0:01:39]}  Bf4 {[%clk 0:00:40]} 17. Re1 {[%clk 0:01:22]}  f5 {[%clk 0:00:37]} 18. Nc5 {[%clk 0:01:17]}  Bxc1 {[%clk 0:00:28]} 19. Kxc1 {[%clk 0:01:17]}  Rde8 {[%clk 0:00:29]} 20. Na3 {[%clk 0:01:07]}  Nf4 {[%clk 0:00:27]} 21. Bf1 {[%clk 0:00:54]}  b6 {[%clk 0:00:23]} 22. Nd3 {[%clk 0:00:52]}  Neg6 {[%clk 0:00:23]} 23. Kd2 {[%clk 0:00:48]}  Nxd3 {[%clk 0:00:16]} 24. Bxd3 {[%clk 0:00:48]}  Nh4 {[%clk 0:00:17]} 25. Rxe8+ {[%clk 0:00:43]}  Rxe8 {[%clk 0:00:16]} 26. Bf1 {[%clk 0:00:43]}  f4 {[%clk 0:00:16]} 27. Nc2 {[%clk 0:00:40]}  g5 {[%clk 0:00:14]} 28. b3 {[%clk 0:00:36]}  h5 {[%clk 0:00:11]} 29. Re1 {[%clk 0:00:36]}  Rxe1 {[%clk 0:00:09]} 30. Nxe1 {[%clk 0:00:34]}  Kd7 {[%clk 0:00:07]} 31. c4 {[%clk 0:00:35]}  Bf7 {[%clk 0:00:07]} 32. Bd3 {[%clk 0:00:34]}  Be6 {[%clk 0:00:06]} 33. Be4 {[%clk 0:00:33]}  c5 {[%clk 0:00:06]} 34. Kc3 {[%clk 0:00:30]}  Kd6 {[%clk 0:00:06]} 35. a3 {[%clk 0:00:30]}  Bf7 {[%clk 0:00:06]} 36. b4 {[%clk 0:00:29]}  axb4+ {[%clk 0:00:07]} 37. axb4 {[%clk 0:00:30]}  Be6 {[%clk 0:00:07]} 38. dxc5+ {[%clk 0:00:21]}  bxc5 {[%clk 0:00:08]} 39. b5 {[%clk 0:00:21]}  Kc7 {[%clk 0:00:07]} 40. Bd5 {[%clk 0:00:18]}  Bd7 {[%clk 0:00:04]} 41. Bf7 {[%clk 0:00:18]}  g4 {[%clk 0:00:05]} 42. fxg4 {[%clk 0:00:15]}  hxg4 {[%clk 0:00:06]} 43. hxg4 {[%clk 0:00:16]}  Bxg4 {[%clk 0:00:06]} 44. Bd5 {[%clk 0:00:17]}  Kb6 {[%clk 0:00:06]} 45. Nd3 {[%clk 0:00:17]}  f3 {[%clk 0:00:07]} 46. g3 {[%clk 0:00:14]}  Nf5 {[%clk 0:00:07]} 47. Nf2 {[%clk 0:00:15]}  Ne3 {[%clk 0:00:01]} 48. Nxg4 {[%clk 0:00:14]}  Nxg4 {[%clk 0:00:02]} 49. Bxf3 {[%clk 0:00:14]}  Ne5 {[%clk 0:00:03]} 50. Be2 {[%clk 0:00:14]}  Kc7 {[%clk 0:00:03]} 51. Kd2 {[%clk 0:00:14]}  Kd6 {[%clk 0:00:03]} 52. Ke3 {[%clk 0:00:15]}  Nd7 {[%clk 0:00:04]} 53. Kf4 {[%clk 0:00:15]}  Ke7 {[%clk 0:00:04]} 54. Kf5 {[%clk 0:00:15]}  Nb6 {[%clk 0:00:03]} 55. g4 {[%clk 0:00:16]}  Kf7 {[%clk 0:00:03]} 56. g5 {[%clk 0:00:17]}  Nc8 {[%clk 0:00:03]} 57. Ke5 {[%clk 0:00:17]}  Nb6 {[%clk 0:00:02]} 58. Bd3 {[%clk 0:00:17]}  Ke7 {[%clk 0:00:00]} 59. g6 {[%clk 0:00:17]} 1-0


[Site "https://www.chess.com"]

[Event "Titled Tuesday Blitz July 4 Late 2023"]
[White "Nihal Sarin"]
[Black "Kollars, Dmitrij"]
[WhiteFideId "25092340"]
[BlackFideId "12909572"]
[WhiteElo "3124"]
[BlackElo "2972"]
[Result "0-1"]
[Round "9"]
[TimeControl "180+2"]
[Date "2023.07.04"]
[WhiteClock "0:00:11"]
[BlackClock "0:00:45"]
[Board "5"]

1. e4 {[%clk 0:02:53]}  e5 {[%clk 0:02:59]} 2. Nf3 {[%clk 0:02:53]}  Nc6 {[%clk 0:03:00]} 3. Bc4 {[%clk 0:02:49]}  Nf6 {[%clk 0:02:59]} 4. d3 {[%clk 0:02:50]}  Bc5 {[%clk 0:02:59]} 5. O-O {[%clk 0:02:48]}  d6 {[%clk 0:02:58]} 6. c3 {[%clk 0:02:48]}  a5 {[%clk 0:02:57]} 7. Re1 {[%clk 0:02:44]}  O-O {[%clk 0:02:54]} 8. h3 {[%clk 0:02:44]}  h6 {[%clk 0:02:53]} 9. Nbd2 {[%clk 0:02:43]}  Be6 {[%clk 0:02:52]} 10. Bb5 {[%clk 0:02:44]}  Nd7 {[%clk 0:02:50]} 11. Nf1 {[%clk 0:02:41]}  d5 {[%clk 0:02:50]} 12. exd5 {[%clk 0:02:32]}  Bxd5 {[%clk 0:02:51]} 13. Ne3 {[%clk 0:02:32]}  Bxe3 {[%clk 0:02:49]} 14. Bxe3 {[%clk 0:02:33]}  f5 {[%clk 0:02:44]} 15. c4 {[%clk 0:02:29]}  Bf7 {[%clk 0:02:38]} 16. Bd2 {[%clk 0:02:21]}  Bh5 {[%clk 0:02:33]} 17. Bxc6 {[%clk 0:02:18]}  bxc6 {[%clk 0:02:34]} 18. Qe2 {[%clk 0:02:14]}  e4 {[%clk 0:02:19]} 19. dxe4 {[%clk 0:02:14]}  Ne5 {[%clk 0:02:19]} 20. Bc3 {[%clk 0:01:44]}  Nxf3+ {[%clk 0:02:06]} 21. gxf3 {[%clk 0:01:45]}  Qg5+ {[%clk 0:01:59]} 22. Kf1 {[%clk 0:01:34]}  fxe4 {[%clk 0:01:47]} 23. Qe3 {[%clk 0:01:34]}  Qh4 {[%clk 0:01:35]} 24. Qxe4 {[%clk 0:00:34]}  Qxh3+ {[%clk 0:01:27]} 25. Kg1 {[%clk 0:00:35]}  Rf5 {[%clk 0:01:13]} 26. Qe6+ {[%clk 0:00:35]}  Kh7 {[%clk 0:01:12]} 27. Re5 {[%clk 0:00:34]}  Raf8 {[%clk 0:01:02]} 28. Qd7 {[%clk 0:00:11]}  Bxf3 {[%clk 0:00:45]} 0-1


[Site "https://www.chess.com"]

[Event "Titled Tuesday Blitz July 4 Late 2023"]
[White "Bortnyk, Olexandr"]
[Black "Xiong, Jeffery"]
[WhiteFideId "14120828"]
[BlackFideId "2047640"]
[WhiteElo "3034"]
[BlackElo "2958"]
[Result "1-0"]
[Round "9"]
[TimeControl "180+2"]
[Date "2023.07.04"]
[WhiteClock "0:00:04"]
[BlackClock "0:00:03"]
[Board "6"]

1. e4 {[%clk 0:03:00]}  c5 {[%clk 0:01:40]} 2. Be2 {[%clk 0:02:57]}  Nc6 {[%clk 0:01:38]} 3. f4 {[%clk 0:02:57]}  d5 {[%clk 0:01:32]} 4. d3 {[%clk 0:02:57]}  Nd4 {[%clk 0:01:31]} 5. Nf3 {[%clk 0:02:54]}  Nxe2 {[%clk 0:01:31]} 6. Qxe2 {[%clk 0:02:54]}  g6 {[%clk 0:01:31]} 7. c4 {[%clk 0:02:51]}  dxe4 {[%clk 0:01:29]} 8. dxe4 {[%clk 0:02:51]}  Bg7 {[%clk 0:01:29]} 9. Be3 {[%clk 0:02:46]}  b6 {[%clk 0:01:27]} 10. O-O {[%clk 0:02:42]}  Bb7 {[%clk 0:01:28]} 11. Nbd2 {[%clk 0:02:32]}  Nf6 {[%clk 0:01:26]} 12. Rad1 {[%clk 0:02:28]}  Qc7 {[%clk 0:01:25]} 13. e5 {[%clk 0:02:28]}  Ng4 {[%clk 0:01:23]} 14. Ng5 {[%clk 0:02:20]}  Nxe3 {[%clk 0:01:22]} 15. Qxe3 {[%clk 0:02:21]}  h6 {[%clk 0:01:21]} 16. Nge4 {[%clk 0:02:12]}  O-O-O {[%clk 0:01:20]} 17. Nc3 {[%clk 0:02:08]}  Qc6 {[%clk 0:01:10]} 18. Nf3 {[%clk 0:01:54]}  Qe6 {[%clk 0:01:02]} 19. b3 {[%clk 0:01:41]}  f6 {[%clk 0:01:02]} 20. Rfe1 {[%clk 0:01:29]}  g5 {[%clk 0:01:02]} 21. Nd5 {[%clk 0:01:20]}  Bxd5 {[%clk 0:00:59]} 22. cxd5 {[%clk 0:01:16]}  Rxd5 {[%clk 0:01:00]} 23. f5 {[%clk 0:01:12]}  Qc6 {[%clk 0:00:54]} 24. Qe4 {[%clk 0:01:05]}  Rhd8 {[%clk 0:00:54]} 25. e6 {[%clk 0:01:04]}  Kc7 {[%clk 0:00:53]} 26. Rxd5 {[%clk 0:01:02]}  Qxd5 {[%clk 0:00:54]} 27. g4 {[%clk 0:00:49]}  h5 {[%clk 0:00:52]} 28. h3 {[%clk 0:00:46]}  Qd6 {[%clk 0:00:48]} 29. Kf2 {[%clk 0:00:39]}  h4 {[%clk 0:00:48]} 30. Ke3 {[%clk 0:00:36]}  Qg3 {[%clk 0:00:45]} 31. Qa4 {[%clk 0:00:29]}  a5 {[%clk 0:00:41]} 32. Qb5 {[%clk 0:00:23]}  Kb7 {[%clk 0:00:38]} 33. Qf1 {[%clk 0:00:21]}  Qf4+ {[%clk 0:00:34]} 34. Kf2 {[%clk 0:00:19]}  c4 {[%clk 0:00:34]} 35. Qxc4 {[%clk 0:00:14]}  Qg3+ {[%clk 0:00:31]} 36. Ke3 {[%clk 0:00:13]}  Qxh3 {[%clk 0:00:32]} 37. Rc1 {[%clk 0:00:13]}  Qg3 {[%clk 0:00:27]} 38. Qc6+ {[%clk 0:00:14]}  Ka6 {[%clk 0:00:24]} 39. Qc4+ {[%clk 0:00:13]}  Kb7 {[%clk 0:00:22]} 40. Qc6+ {[%clk 0:00:12]}  Ka6 {[%clk 0:00:22]} 41. Qc7 {[%clk 0:00:12]}  Qxc7 {[%clk 0:00:18]} 42. Rxc7 {[%clk 0:00:13]}  Bf8 {[%clk 0:00:18]} 43. a4 {[%clk 0:00:10]}  b5 {[%clk 0:00:15]} 44. Rc6+ {[%clk 0:00:10]}  Kb7 {[%clk 0:00:16]} 45. axb5 {[%clk 0:00:11]}  Rd5 {[%clk 0:00:16]} 46. Nd4 {[%clk 0:00:10]}  h3 {[%clk 0:00:16]} 47. Rc2 {[%clk 0:00:10]}  Kb6 {[%clk 0:00:15]} 48. Rc6+ {[%clk 0:00:08]}  Kb7 {[%clk 0:00:15]} 49. Rc2 {[%clk 0:00:09]}  Kb6 {[%clk 0:00:16]} 50. Nf3 {[%clk 0:00:03]}  Rxb5 {[%clk 0:00:15]} 51. Rc8 {[%clk 0:00:04]}  Rxb3+ {[%clk 0:00:15]} 52. Kf2 {[%clk 0:00:05]}  a4 {[%clk 0:00:13]} 53. Rxf8 {[%clk 0:00:04]}  Kc5 {[%clk 0:00:14]} 54. Ra8 {[%clk 0:00:03]}  a3 {[%clk 0:00:13]} 55. Ra7 {[%clk 0:00:03]}  Kd5 {[%clk 0:00:13]} 56. Rxe7 {[%clk 0:00:02]}  Rc3 {[%clk 0:00:02]} 57. Ra7 {[%clk 0:00:02]}  Ke4 {[%clk 0:00:03]} 58. Ra4+ {[%clk 0:00:02]}  Kd3 {[%clk 0:00:03]} 59. e7 {[%clk 0:00:03]}  Rc8 {[%clk 0:00:03]} 60. Rxa3+ {[%clk 0:00:03]}  Ke4 {[%clk 0:00:04]} 61. Re3+ {[%clk 0:00:03]}  Kf4 {[%clk 0:00:05]} 62. e8=Q {[%clk 0:00:04]}  Rxe8 {[%clk 0:00:04]} 63. Rxe8 {[%clk 0:00:05]}  h2 {[%clk 0:00:03]} 64. Rh8 {[%clk 0:00:04]} 1-0


[Site "https://www.chess.com"]

[Event "Titled Tuesday Blitz July 4 Late 2023"]
[White "Ibarra Jerez, Jose Carlos"]
[Black "Naroditsky, Daniel"]
[WhiteFideId "2226332"]
[BlackFideId "2026961"]
[WhiteElo "2866"]
[BlackElo "3123"]
[Result "0-1"]
[Round "9"]
[TimeControl "180+2"]
[Date "2023.07.04"]
[WhiteClock "0:00:00"]
[BlackClock "0:00:04"]
[Board "9"]

1. e4 {[%clk 0:03:00]}  Nf6 {[%clk 0:02:59]} 2. e5 {[%clk 0:03:01]}  Nd5 {[%clk 0:03:00]} 3. c4 {[%clk 0:03:01]}  Nb6 {[%clk 0:03:00]} 4. d4 {[%clk 0:03:02]}  d6 {[%clk 0:03:00]} 5. exd6 {[%clk 0:03:03]}  exd6 {[%clk 0:03:00]} 6. Nc3 {[%clk 0:03:03]}  Be7 {[%clk 0:02:59]} 7. Bd3 {[%clk 0:03:04]}  O-O {[%clk 0:02:57]} 8. Nge2 {[%clk 0:03:04]}  c6 {[%clk 0:02:57]} 9. O-O {[%clk 0:03:04]}  Na6 {[%clk 0:02:57]} 10. a4 {[%clk 0:03:01]}  d5 {[%clk 0:02:39]} 11. c5 {[%clk 0:02:57]}  Nd7 {[%clk 0:02:39]} 12. Bxa6 {[%clk 0:02:54]}  bxa6 {[%clk 0:02:40]} 13. b4 {[%clk 0:02:55]}  Bf6 {[%clk 0:02:34]} 14. Rb1 {[%clk 0:02:43]}  Re8 {[%clk 0:02:31]} 15. b5 {[%clk 0:02:39]}  axb5 {[%clk 0:02:31]} 16. axb5 {[%clk 0:02:39]}  Bb7 {[%clk 0:02:31]} 17. Qa4 {[%clk 0:02:19]}  Qc8 {[%clk 0:02:21]} 18. Be3 {[%clk 0:02:12]}  Nf8 {[%clk 0:01:47]} 19. bxc6 {[%clk 0:01:59]}  Bxc6 {[%clk 0:01:47]} 20. Qa2 {[%clk 0:02:00]}  Qd7 {[%clk 0:01:41]} 21. Nf4 {[%clk 0:01:57]}  Rad8 {[%clk 0:01:41]} 22. Nh5 {[%clk 0:01:48]}  Be7 {[%clk 0:01:37]} 23. Ra1 {[%clk 0:01:37]}  Ra8 {[%clk 0:01:37]} 24. Nf4 {[%clk 0:01:36]}  Red8 {[%clk 0:01:38]} 25. Nd3 {[%clk 0:01:33]}  Bf6 {[%clk 0:01:34]} 26. Nb4 {[%clk 0:01:32]}  Ne6 {[%clk 0:01:33]} 27. Nxc6 {[%clk 0:01:31]}  Qxc6 {[%clk 0:01:34]} 28. Qa4 {[%clk 0:01:31]}  Qxa4 {[%clk 0:01:31]} 29. Rxa4 {[%clk 0:01:22]}  Nxc5 {[%clk 0:01:31]} 30. Ra5 {[%clk 0:01:22]}  Nb3 {[%clk 0:01:26]} 31. Rxd5 {[%clk 0:01:13]}  Bxd4 {[%clk 0:01:16]} 32. Bxd4 {[%clk 0:01:12]}  Rxd5 {[%clk 0:01:09]} 33. Nxd5 {[%clk 0:01:10]}  Nxd4 {[%clk 0:01:10]} 34. Ra1 {[%clk 0:01:05]}  a5 {[%clk 0:01:05]} 35. Ra4 {[%clk 0:00:51]}  Nb3 {[%clk 0:00:49]} 36. g3 {[%clk 0:00:43]}  g6 {[%clk 0:00:44]} 37. Nc3 {[%clk 0:00:27]}  Rc8 {[%clk 0:00:35]} 38. Nd5 {[%clk 0:00:27]}  Rc5 {[%clk 0:00:29]} 39. Ra3 {[%clk 0:00:21]}  Rxd5 {[%clk 0:00:22]} 40. Rxb3 {[%clk 0:00:21]}  Rd8 {[%clk 0:00:20]} 41. Ra3 {[%clk 0:00:20]}  Ra8 {[%clk 0:00:20]} 42. Ra4 {[%clk 0:00:21]}  h5 {[%clk 0:00:19]} 43. Kf1 {[%clk 0:00:21]}  Kg7 {[%clk 0:00:20]} 44. Ke2 {[%clk 0:00:22]}  Kf6 {[%clk 0:00:21]} 45. h4 {[%clk 0:00:21]}  Ke5 {[%clk 0:00:20]} 46. Kd3 {[%clk 0:00:22]}  f6 {[%clk 0:00:18]} 47. Kc3 {[%clk 0:00:20]}  Kf5 {[%clk 0:00:11]} 48. Rf4+ {[%clk 0:00:19]}  Ke6 {[%clk 0:00:11]} 49. Ra4 {[%clk 0:00:19]}  Ke5 {[%clk 0:00:10]} 50. Kd3 {[%clk 0:00:18]}  Kd5 {[%clk 0:00:06]} 51. Kc3 {[%clk 0:00:15]}  Ra6 {[%clk 0:00:07]} 52. Rd4+ {[%clk 0:00:06]}  Kc5 {[%clk 0:00:07]} 53. Rd8 {[%clk 0:00:05]}  a4 {[%clk 0:00:07]} 54. Kb2 {[%clk 0:00:06]}  Kc4 {[%clk 0:00:03]} 55. Rg8 {[%clk 0:00:04]}  f5 {[%clk 0:00:03]} 56. Rd8 {[%clk 0:00:03]}  a3+ {[%clk 0:00:03]} 57. Ka2 {[%clk 0:00:03]}  Kc3 {[%clk 0:00:03]} 58. Rd5 {[%clk 0:00:03]}  Kc4 {[%clk 0:00:03]} 59. Rd8 {[%clk 0:00:03]}  Kb4 {[%clk 0:00:04]} 60. Rd4+ {[%clk 0:00:03]}  Kc5 {[%clk 0:00:04]} 61. Rd8 {[%clk 0:00:03]}  Rd6 {[%clk 0:00:04]} 62. Rg8 {[%clk 0:00:02]}  Kb4 {[%clk 0:00:04]} 63. Rb8+ {[%clk 0:00:02]}  Kc3 {[%clk 0:00:04]} 64. Rc8+ {[%clk 0:00:02]}  Kd2 {[%clk 0:00:03]} 65. Kxa3 {[%clk 0:00:03]}  Ke2 {[%clk 0:00:04]} 66. Rc2+ {[%clk 0:00:03]}  Kf3 {[%clk 0:00:03]} 67. Kb4 {[%clk 0:00:03]}  f4 {[%clk 0:00:03]} 68. gxf4 {[%clk 0:00:03]}  Rd4+ {[%clk 0:00:04]} 69. Kc5 {[%clk 0:00:03]}  Rxf4 {[%clk 0:00:04]} 70. Kd5 {[%clk 0:00:04]}  Rxh4 {[%clk 0:00:05]} 71. Ke5 {[%clk 0:00:05]}  Rg4 {[%clk 0:00:03]} 72. Kf6 {[%clk 0:00:05]}  h4 {[%clk 0:00:03]} 73. Rb2 {[%clk 0:00:05]}  h3 {[%clk 0:00:03]} 74. Rb3+ {[%clk 0:00:06]}  Kg2 {[%clk 0:00:04]} 75. f3 {[%clk 0:00:06]}  Rg3 {[%clk 0:00:04]} 76. Rb2+ {[%clk 0:00:05]}  Kxf3 {[%clk 0:00:05]} 77. Ke5 {[%clk 0:00:04]}  Rg2 {[%clk 0:00:03]} 78. Rb3+ {[%clk 0:00:04]}  Kg4 {[%clk 0:00:04]} 79. Rb1 {[%clk 0:00:01]}  h2 {[%clk 0:00:04]} 80. Rb4+ {[%clk 0:00:00]}  Kg3 {[%clk 0:00:04]} 0-1


[Site "https://www.chess.com"]

[Event "Titled Tuesday Blitz July 4 Late 2023"]
[White "Deac, Bogdan-Daniel"]
[Black "Henriquez Villagra, Cristobal"]
[WhiteFideId "1226380"]
[BlackFideId "3409350"]
[WhiteElo "2986"]
[BlackElo "2856"]
[Result "1/2-1/2"]
[Round "9"]
[TimeControl "180+2"]
[Date "2023.07.04"]
[WhiteClock "0:00:16"]
[BlackClock "0:00:19"]
[Board "10"]

1. b3 {[%clk 0:03:00]}  d6 {[%clk 0:03:00]} 2. Bb2 {[%clk 0:03:00]}  e5 {[%clk 0:03:01]} 3. e3 {[%clk 0:03:00]}  Nd7 {[%clk 0:03:01]} 4. Ne2 {[%clk 0:03:00]}  b6 {[%clk 0:02:52]} 5. d4 {[%clk 0:02:58]}  Bb7 {[%clk 0:02:52]} 6. d5 {[%clk 0:02:58]}  f5 {[%clk 0:02:46]} 7. c4 {[%clk 0:02:56]}  Ngf6 {[%clk 0:02:34]} 8. Nbc3 {[%clk 0:02:55]}  Be7 {[%clk 0:02:34]} 9. Qc2 {[%clk 0:02:38]}  g6 {[%clk 0:02:33]} 10. e4 {[%clk 0:02:35]}  fxe4 {[%clk 0:02:30]} 11. Ng3 {[%clk 0:02:35]}  Nc5 {[%clk 0:02:30]} 12. b4 {[%clk 0:02:23]}  Nd3+ {[%clk 0:02:30]} 13. Bxd3 {[%clk 0:02:24]}  exd3 {[%clk 0:02:31]} 14. Qxd3 {[%clk 0:02:24]}  Bc8 {[%clk 0:02:29]} 15. O-O {[%clk 0:02:21]}  O-O {[%clk 0:02:29]} 16. f4 {[%clk 0:02:14]}  a5 {[%clk 0:02:16]} 17. fxe5 {[%clk 0:00:57]}  dxe5 {[%clk 0:02:17]} 18. Nb5 {[%clk 0:00:58]}  c6 {[%clk 0:02:08]} 19. Nc3 {[%clk 0:00:42]}  axb4 {[%clk 0:02:04]} 20. Nce4 {[%clk 0:00:42]}  cxd5 {[%clk 0:02:03]} 21. Nxf6+ {[%clk 0:00:38]}  Bxf6 {[%clk 0:02:02]} 22. Qxd5+ {[%clk 0:00:38]}  Qxd5 {[%clk 0:01:49]} 23. cxd5 {[%clk 0:00:39]}  Bb7 {[%clk 0:01:39]} 24. d6 {[%clk 0:00:35]}  Bg7 {[%clk 0:01:17]} 25. Rxf8+ {[%clk 0:00:28]}  Kxf8 {[%clk 0:01:18]} 26. Nf1 {[%clk 0:00:24]}  Bd5 {[%clk 0:01:11]} 27. Ne3 {[%clk 0:00:14]}  Be6 {[%clk 0:01:11]} 28. Nc2 {[%clk 0:00:14]}  Ra4 {[%clk 0:01:05]} 29. Nxb4 {[%clk 0:00:04]}  e4 {[%clk 0:00:41]} 30. Bxg7+ {[%clk 0:00:03]}  Kxg7 {[%clk 0:00:42]} 31. a3 {[%clk 0:00:04]}  Kf6 {[%clk 0:00:42]} 32. Rd1 {[%clk 0:00:04]}  Ra7 {[%clk 0:00:16]} 33. Nc6 {[%clk 0:00:04]}  Rd7 {[%clk 0:00:16]} 34. Kf2 {[%clk 0:00:04]}  Bg4 {[%clk 0:00:11]} 35. Rd4 {[%clk 0:00:03]}  Bf5 {[%clk 0:00:12]} 36. Ke3 {[%clk 0:00:03]}  Ke6 {[%clk 0:00:12]} 37. g4 {[%clk 0:00:03]}  Bxg4 {[%clk 0:00:11]} 38. Rxe4+ {[%clk 0:00:03]}  Kxd6 {[%clk 0:00:12]} 39. Ne5 {[%clk 0:00:03]}  Bf5 {[%clk 0:00:12]} 40. Nxd7 {[%clk 0:00:03]}  Bxe4 {[%clk 0:00:13]} 41. Nxb6 {[%clk 0:00:04]}  Bc2 {[%clk 0:00:07]} 42. Nc4+ {[%clk 0:00:04]}  Kc5 {[%clk 0:00:08]} 43. Ne5 {[%clk 0:00:04]}  Kb5 {[%clk 0:00:08]} 44. Nf7 {[%clk 0:00:04]}  Ka4 {[%clk 0:00:08]} 45. Ng5 {[%clk 0:00:05]}  h5 {[%clk 0:00:08]} 46. Ne6 {[%clk 0:00:05]}  Kxa3 {[%clk 0:00:08]} 47. Kf4 {[%clk 0:00:05]}  Kb4 {[%clk 0:00:09]} 48. Kg5 {[%clk 0:00:06]}  Kc4 {[%clk 0:00:09]} 49. Nf8 {[%clk 0:00:06]}  Kd5 {[%clk 0:00:09]} 50. Nxg6 {[%clk 0:00:07]}  Bxg6 {[%clk 0:00:10]} 51. Kxg6 {[%clk 0:00:07]}  h4 {[%clk 0:00:10]} 52. Kg5 {[%clk 0:00:08]}  h3 {[%clk 0:00:11]} 53. Kh4 {[%clk 0:00:09]}  Ke6 {[%clk 0:00:12]} 54. Kxh3 {[%clk 0:00:09]}  Kf7 {[%clk 0:00:13]} 55. Kg4 {[%clk 0:00:10]}  Kg8 {[%clk 0:00:14]} 56. h4 {[%clk 0:00:11]}  Kh8 {[%clk 0:00:15]} 57. h5 {[%clk 0:00:12]}  Kg8 {[%clk 0:00:16]} 58. h6 {[%clk 0:00:13]}  Kh8 {[%clk 0:00:17]} 59. Kg5 {[%clk 0:00:14]}  Kg8 {[%clk 0:00:18]} 60. Kg6 {[%clk 0:00:15]}  Kh8 {[%clk 0:00:19]} 61. h7 {[%clk 0:00:16]} 1/2-1/2


[Site "https://www.chess.com"]